bitfinex-derivatives/quotes_BTCF0:USTF0_20251120
["timestamp","ask_amount","ask_price","bid_price","bid_amount"]
[1763655977433,8.159e-05,88787.0,88785.0,0.00219803]
[1763655977624,8.159e-05,88787.0,88785.0,0.01347373]
[1763655977823,0.00016891,88801.0,88800.0,0.0112739]
[1763655978027,0.3608,88826.0,88815.0,0.011272]
[1763655978230,0.3608,88828.0,88825.0,0.00219803]
[1763655978920,0.3608,88828.0,88818.0,0.00016891]
[1763655979124,0.3608,88819.0,88818.0,0.00236694]
[1763655979329,0.00016891,88835.0,88818.0,0.00236694]
[1763655979330,0.00016891,88835.0,88834.0,0.0112696]
[1763655979520,0.00016891,88835.0,88834.0,0.00219803]
[1763655979918,0.00016891,88835.0,88818.0,0.00016891]
[1763655980232,0.00016891,88835.0,88819.0,0.00219803]
[1763655982028,0.00016891,88835.0,88832.0,0.0112698]
[1763655982228,0.00016891,88835.0,88834.0,0.00219803]
[1763655982622,0.00016891,88835.0,88834.0,0.36299803]
[1763655982834,0.3608,88857.0,88844.0,0.0112683]
[1763655983131,0.3608,88857.0,88834.0,0.36299803]
[1763655983132,0.3608,88857.0,88856.0,0.00219803]
[1763655983732,0.11272,88869.0,88868.0,0.0112653]
[1763655983935,0.11272,88869.0,88868.0,0.00219803]
[1763655984237,0.0001688,88871.0,88869.0,0.0112652]
[1763655984533,0.0001688,88871.0,88870.0,0.01346313]
[1763655984840,0.345686,88910.0,88870.0,0.01346313]
[1763655984841,0.71008,88930.0,88904.0,0.0112607]
[1763655985031,0.11272,88929.0,88905.0,0.00219803]
[1763655985725,0.00016817,88926.0,88908.0,0.0001687]
[1763655985929,0.00016817,88926.0,88909.0,0.00219803]
[1763655986238,0.3608,88913.0,88909.0,0.00219803]
[1763655987035,0.3608,88913.0,88909.0,0.01345813]
[1763655987238,0.3608,88922.0,88909.0,0.36299803]
[1763655987440,0.3608,88913.0,88908.0,0.0001687]
[1763655987625,0.3608,88913.0,88883.0,0.3608]
[1763655987930,0.3608,88904.0,88884.0,0.00219803]
[1763655988328,0.3608,88904.0,88888.0,0.0112628]
[1763655988536,0.3608,88904.0,88878.0,0.3608]
[1763655988537,0.3608,88895.0,88889.0,0.00219803]
[1763655989038,0.3608,88895.0,88893.0,0.011262]
[1763655989334,0.3608,88895.0,88894.0,0.00219803]
[1763655989536,0.0001687,88901.0,88894.0,0.00219803]
[1763655989732,0.3608,88895.0,88883.0,0.0001687]
[1763655989930,0.3608,88895.0,88883.0,0.00236673]
[1763655990331,0.3608,88887.0,88883.0,0.0001687]
[1763655991031,0.3608,88895.0,88883.0,0.00236673]
[1763655991230,0.3608,88895.0,88869.0,0.3608]
[1763655991231,0.3608,88887.0,88860.0,0.36091703]
[1763655991441,0.3608,88879.0,88870.0,0.00219803]
[1763655991934,0.3608,88879.0,88860.0,0.00011703]
[1763655992139,0.3608,88871.0,88860.0,0.00231506]
[1763655992634,0.00016879,88874.0,88867.0,0.3608]
[1763655992835,0.00016879,88874.0,88873.0,0.00219803]
[1763655993635,0.00236682,88874.0,88859.0,0.34697807]
[1763655993938,0.3608,88869.0,88860.0,0.00073267]
[1763655994142,0.00219803,88868.0,88860.0,0.00073267]
[1763655994334,0.3608,88861.0,88857.0,0.00016879]
[1763655994529,0.00219803,88858.0,88834.0,0.3608]
[1763655994731,0.3608,88848.0,88834.0,0.36153267]
[1763655995036,0.00231506,88847.0,88834.0,0.36153267]
[1763655995247,0.00231506,88847.0,88838.0,0.011269]
[1763655995538,0.3608,88841.0,88838.0,0.00073267]
[1763655995739,0.00219803,88839.0,88834.0,0.00016879]
[1763655995934,0.00011703,88838.0,88834.0,0.00016879]
[1763655996130,0.00219803,88835.0,88834.0,0.00016879]
[1763655996332,0.00219803,88835.0,88808.0,0.3608]
[1763655996643,0.3608,88810.0,88794.0,0.0112746]
[1763655996833,0.3608,88810.0,88800.0,0.00073267]
[1763655996834,0.00219803,88809.0,88800.0,0.00073267]
[1763655997033,0.00219803,88809.0,88791.0,0.3608]
[1763655997034,0.00229438,88809.0,88803.0,0.0112735]
[1763655997239,0.00229438,88809.0,88800.0,0.3608]
[1763655997549,0.00229438,88809.0,88807.0,0.011273]
[1763655997746,0.00229438,88809.0,88800.0,0.3608]
[1763655998039,0.00229438,88809.0,88805.0,0.0112733]
[1763655998233,0.00229438,88809.0,88800.0,0.3608]
[1763655998431,0.00229438,88809.0,88797.0,0.0001689]
[1763655998645,0.00011136,88808.0,88807.0,0.0112731]
[1763655998838,0.00230939,88808.0,88797.0,0.0001689]
[1763655999034,0.00230939,88808.0,88807.0,0.0112731]
[1763655999837,0.00011136,88808.0,88807.0,0.4112731]
[1763656000036,0.00230939,88808.0,88807.0,0.3608]
[1763656000539,0.00230939,88808.0,88805.0,0.0112733]
[1763656000735,0.00230939,88808.0,88801.0,0.0112738]
[1763656000934,0.00230939,88808.0,88805.0,0.0112732]
[1763656001340,0.00230939,88808.0,88800.0,0.3608]
[1763656001542,0.09186,88800.0,88797.0,0.0001689]
[1763656001842,0.00219803,88798.0,88766.0,0.00028164]
[1763656002044,0.00219803,88798.0,88793.0,0.0112747]
[1763656002251,0.00219803,88798.0,88796.0,0.0112743]
[1763656002756,0.03860508,88843.0,88803.0,0.0112735]
[1763656002936,0.0001689,88832.0,88814.0,0.00011326]
[1763656003137,0.00234055,88831.0,88815.0,0.011272]
[1763656003338,0.00234055,88831.0,88814.0,0.00011326]
[1763656003945,0.00219803,88831.0,88814.0,0.00011326]
[1763656004943,0.00219803,88831.0,88815.0,0.002]
[1763656004944,0.3608,88825.0,88815.0,0.002]
[1763656005150,0.3617307,88816.0,88815.0,0.002]
[1763656005346,0.36186908,88816.0,88815.0,0.002]
[1763656005848,0.00106908,88816.0,88815.0,0.013272]
[1763656006052,0.36186908,88816.0,88815.0,0.002]
[1763656006255,0.00013838,88816.0,88815.0,0.540552]
[1763656006641,0.00106908,88816.0,88815.0,0.26431]
[1763656007146,0.3608,88827.0,88826.0,0.0112706]
[1763656007347,0.0009307,88827.0,88826.0,0.52928]
[1763656007539,0.0001689,88832.0,88831.0,0.53855]
[1763656007743,0.0001689,88832.0,88831.0,0.90135]
[1763656008050,0.3608,88846.0,88843.0,0.0112684]
[1763656008250,0.3608,88846.0,88845.0,0.00219803]
[1763656008447,7.232e-05,88846.0,88845.0,0.26450803]
[1763656008651,7.232e-05,88846.0,88845.0,0.00219803]
[1763656009542,0.0001689,88854.0,88853.0,0.5385472]
[1763656009845,0.3608,88874.0,88859.0,0.0112663]
[1763656010156,0.3608,88883.0,88878.0,0.011264]
[1763656010348,0.3608,88883.0,88882.0,0.00219803]
[1763656012047,0.3608,88883.0,88882.0,0.01346153]
[1763656012253,0.3608,88883.0,88882.0,0.00219803]
[1763656012644,0.0001688,88891.0,88887.0,0.0112628]
[1763656012947,0.0001688,88891.0,88890.0,0.00219803]
[1763656013553,0.3608,88897.0,88896.0,0.0112618]
[1763656013855,0.3608,88909.0,88906.0,0.0112604]
[1763656014051,0.3608,88916.0,88907.0,0.00219803]
[1763656014255,0.3608,88911.0,88907.0,0.00219803]
[1763656014546,0.3608,88909.0,88900.0,0.0001687]
[1763656014752,0.3608,88901.0,88900.0,0.0001687]
[1763656015153,0.3608,88901.0,88882.0,0.00219803]
[1763656015348,0.3608,88901.0,88867.0,0.3608]
[1763656015349,0.3608,88885.0,88867.0,0.3608]
[1763656015543,0.3608,88875.0,88868.0,0.00219803]
[1763656015863,0.3608,88875.0,88872.0,0.0112647]
[1763656016151,0.0001687,88882.0,88879.0,0.0112638]
[1763656016457,0.0001687,88882.0,88881.0,0.0112637]
[1763656016652,0.0001687,88882.0,88881.0,0.01346173]
[1763656017553,0.11268,88906.0,88903.0,0.0112609]
[1763656017770,0.11268,88906.0,88905.0,0.00219803]
[1763656018058,0.3608,88915.0,88905.0,0.00219803]
[1763656018258,0.3608,88906.0,88877.0,0.3608]
[1763656018459,0.0001687,88900.0,88885.0,0.3608]
[1763656018660,0.0001687,88900.0,88886.0,0.00219803]
[1763656018956,0.0001687,88900.0,88888.0,0.0112627]
[1763656019253,0.0001687,88900.0,88899.0,0.00219803]
[1763656019451,0.0001687,88900.0,88885.0,0.3608]
[1763656019653,0.3608,88893.0,88886.0,0.00219803]
[1763656020053,0.3608,88893.0,88887.0,0.0112629]
[1763656020253,0.3608,88893.0,88883.0,0.0001687]
[1763656020756,0.3608,88893.0,88884.0,0.3608]
[1763656020958,0.0001687,88900.0,88899.0,0.0112614]
[1763656021155,0.0001687,88900.0,88899.0,0.00219803]
[1763656021454,0.16339,88896.0,88857.0,0.3608]
[1763656021752,0.3608,88863.0,88858.0,0.00219803]
[1763656022054,0.3608,88863.0,88847.0,0.3608]
[1763656022256,0.3608,88863.0,88848.0,0.00219803]
[1763656022458,0.3608,88863.0,88849.0,0.0112677]
[1763656022657,0.3608,88855.0,88850.0,0.00219803]
[1763656022960,0.00016879,88864.0,88854.0,0.3608]
[1763656023151,0.00016879,88864.0,88863.0,0.00219803]
[1763656023354,0.11264,88892.0,88885.0,0.0112631]
[1763656023557,0.11264,88892.0,88886.0,0.00219803]
[1763656024252,0.11264,88892.0,88870.0,0.3608]
[1763656024458,0.3608,88883.0,88876.0,0.0112643]
[1763656024759,0.00016879,88890.0,88881.0,0.0112636]
[1763656024953,0.00016879,88890.0,88882.0,0.00219803]
[1763656025448,0.00016879,88890.0,88888.0,0.3608]
[1763656025760,0.00016879,88890.0,88889.0,0.00219803]
[1763656026167,0.3608,88912.0,88909.0,0.0112601]
[1763656026461,0.3608,88921.0,88912.0,0.0112597]
[1763656026655,0.3608,88931.0,88925.0,0.0112581]
[1763656026958,0.3608,88941.0,88925.0,0.00219803]
[1763656027259,0.3608,88933.0,88925.0,0.00219803]
[1763656027445,0.00016869,88934.0,88925.0,0.00219803]
[1763656028256,0.00016869,88934.0,88932.0,0.0112571]
[1763656028561,0.00016869,88934.0,88933.0,0.00219803]
[1763656028759,0.3608,88962.0,88959.0,0.0112537]
[1763656028952,0.165,88992.0,88962.0,0.0112534]
[1763656029155,0.165,88992.0,88965.0,0.00219803]
[1763656029356,0.00028088,89006.0,88968.0,0.16564]
[1763656029554,0.00028088,89006.0,88969.0,0.00219803]
[1763656029950,0.00016749,88996.0,88979.0,0.00016858]
[1763656030252,0.00016749,88996.0,88980.0,0.00219803]
[1763656030768,0.3608,88991.0,88980.0,0.00219803]
[1763656030953,0.3608,88991.0,88981.0,0.011251]
[1763656031150,0.3608,88991.0,88990.0,0.00219803]
[1763656031456,0.00016749,88996.0,88993.0,0.0112495]
[1763656031658,0.00028088,89006.0,88995.0,0.00219803]
[1763656031959,0.1126,89038.0,89008.0,0.0112475]
[1763656032157,0.1126,89038.0,89010.0,0.0112472]
[1763656032355,0.1126,89038.0,89011.0,0.00219803]
[1763656032659,0.3608,89024.0,89016.0,0.00016858]
[1763656032858,0.3608,89024.0,89000.0,0.3608]
[1763656033049,0.165,89025.0,88958.0,0.0112538]
[1763656033249,0.165,89025.0,88970.0,0.00219803]
[1763656033749,0.00016858,89006.0,88989.0,0.00016858]
[1763656034064,0.00016858,89006.0,89002.0,0.0112483]
[1763656034259,0.08993225,89027.0,89005.0,0.00219803]
[1763656034660,0.08993225,89027.0,89026.0,0.0112453]
[1763656034960,0.0898869,89063.0,89026.0,0.00219803]
[1763656035160,0.0898869,89063.0,89044.0,0.0112429]
[1763656035362,0.0898869,89063.0,89045.0,0.00219803]
[1763656035566,7.6e-07,89046.0,89045.0,0.00219803]
[1763656036068,0.00847004,89064.0,89045.0,0.40219803]
[1763656036255,0.00847004,89064.0,89061.0,0.0112408]
[1763656036460,4e-08,89064.0,89063.0,0.00219803]
[1763656037160,0.36080004,89064.0,89063.0,0.00219803]
[1763656037666,4e-08,89064.0,89063.0,0.00219803]
[1763656037861,0.36080004,89064.0,89063.0,0.00219803]
[1763656038059,0.36080004,89064.0,89047.0,0.3608]
[1763656038251,0.36080004,89064.0,89048.0,0.00219803]
[1763656038451,0.3608,89056.0,89055.0,0.00197269]
[1763656038657,0.3608,89056.0,89055.0,0.00417072]
[1763656039053,0.3608,89056.0,89046.0,0.00016847]
[1763656039261,0.3608,89047.0,89017.0,0.3608]
[1763656039463,0.3608,89047.0,89018.0,0.00219803]
[1763656039665,0.3608,89038.0,89018.0,0.00219803]
[1763656040279,0.3608,89038.0,89024.0,0.0112456]
[1763656040280,0.00016811,89037.0,89024.0,0.0112456]
[1763656040568,0.00016811,89037.0,89025.0,0.00219803]
[1763656040764,0.00016811,89037.0,89019.0,0.00016847]
[1763656040765,0.3608,89029.0,89019.0,0.00016847]
[1763656040973,0.3608,89029.0,89020.0,0.00219803]
[1763656041158,0.3608,89021.0,89020.0,0.00219803]
[1763656041672,0.3608,89021.0,89019.0,0.00016847]
[1763656041973,0.3608,89021.0,88988.0,0.3720501]
[1763656041974,0.4514938,89021.0,88988.0,0.3720501]
[1763656042177,0.4514938,89021.0,88999.0,0.00219803]
[1763656042178,0.3608,89006.0,88999.0,0.00219803]
[1763656042484,0.3608,89006.0,88987.0,0.3608]
[1763656042655,0.3608,88995.0,88988.0,0.00219803]
[1763656042861,0.3608,88995.0,88928.0,0.01271348]
[1763656042862,0.3608,88994.0,88960.0,0.3608]
[1763656043068,0.3608,88994.0,88976.0,0.00219803]
[1763656043069,0.3608,88985.0,88976.0,0.00219803]
[1763656043372,0.3608,88985.0,88977.0,0.0112515]
[1763656043573,0.00016857,88988.0,88984.0,0.01344863]
[1763656043763,0.3608,89012.0,88989.0,0.0112499]
[1763656043966,0.3608,89012.0,89003.0,0.0112482]
[1763656044169,0.3608,89021.0,89005.0,0.3608]
[1763656044468,0.3608,89021.0,89020.0,0.00219803]
[1763656044862,0.3608,89021.0,89012.0,0.00016857]
[1763656045062,0.3608,89021.0,89013.0,0.00219803]
[1763656045372,0.3608,89049.0,89024.0,0.16564]
[1763656045566,0.3608,89052.0,89048.0,0.00219803]
[1763656045868,0.3608,89058.0,89048.0,0.00219803]
[1763656046173,0.3608,89085.0,89061.0,0.0112408]
[1763656046364,0.3608,89080.0,89067.0,0.01124]
[1763656046677,0.00028063,89086.0,89085.0,0.00219803]
[1763656046972,6.3e-07,89086.0,89085.0,0.00219803]
[1763656047470,0.70888,89163.0,89085.0,0.00219803]
[1763656047672,0.70888,89163.0,89107.0,0.011235]
[1763656047864,0.02044,89155.0,89108.0,0.00219803]
[1763656048066,0.01311898,89150.0,89108.0,0.00219803]
[1763656048266,0.165,89127.0,89108.0,0.00219803]
[1763656048779,0.3608,89116.0,89108.0,0.00219803]
[1763656049074,0.2108,89109.0,89097.0,0.00016834]
[1763656049466,0.3608,89100.0,89097.0,0.00236637]
[1763656049669,0.2108,89109.0,89097.0,0.00236637]
[1763656050069,0.3608,89099.0,89097.0,0.00016834]
[1763656050287,0.29919378,89109.0,89086.0,0.3608]
[1763656050465,0.29919378,89109.0,89087.0,0.00219803]
[1763656050664,0.29919378,89109.0,89089.0,0.3608]
[1763656050875,0.3608,89101.0,89090.0,0.00219803]
[1763656051673,0.00016758,89104.0,89090.0,0.00219803]
[1763656051978,0.00016758,89104.0,89097.0,0.3608]
[1763656052167,0.00016758,89104.0,89103.0,0.00219803]
[1763656052370,0.00016758,89104.0,89092.0,0.3608]
[1763656052565,0.00016758,89104.0,89093.0,0.00219803]
[1763656053073,0.3608,89119.0,89093.0,0.00219803]
[1763656053074,0.3608,89119.0,89100.0,0.3608]
[1763656053280,0.3608,89119.0,89118.0,0.00219803]
[1763656053467,0.3608,89134.0,89118.0,0.36299803]
[1763656053772,0.3608,89134.0,89119.0,0.3608]
[1763656053974,0.3608,89134.0,89125.0,0.00219803]
[1763656054364,0.3608,89144.0,89125.0,0.00219803]
[1763656054667,0.3608,89136.0,89125.0,0.00219803]
[1763656054873,0.3608,89136.0,89117.0,0.00016834]
[1763656054874,0.16694,89128.0,89117.0,0.00016834]
[1763656055079,0.3608,89127.0,89118.0,0.00219803]
[1763656055773,0.3608,89136.0,89118.0,0.00219803]
[1763656056189,0.3608,89136.0,89119.0,0.3608]
[1763656056371,0.3608,89136.0,89125.0,0.00219803]
[1763656056877,0.3608,89149.0,89125.0,0.56471803]
[1763656057072,0.3608,89150.0,89131.0,0.3608]
[1763656057270,0.3608,89150.0,89132.0,0.00219803]
[1763656057477,0.3608,89159.0,89139.0,0.3608]
[1763656057668,0.3608,89159.0,89140.0,0.00219803]
[1763656057866,0.3608,89159.0,89146.0,0.01123]
[1763656058072,0.3608,89159.0,89158.0,0.00219803]
[1763656058272,0.3608,89167.0,89158.0,0.00219803]
[1763656059177,0.3608,89159.0,89158.0,0.00219803]
[1763656061082,0.3608,89159.0,89153.0,0.00016824]
[1763656061083,1.1216,89159.0,89153.0,0.00016824]
[1763656061381,0.7216,89159.0,89128.0,0.3608]
[1763656061582,0.3608,89141.0,89129.0,0.00219803]
[1763656062084,0.3608,89141.0,89130.0,0.011232]
[1763656062383,0.3608,89141.0,89140.0,0.00219803]
[1763656062683,0.3608,89141.0,89128.0,0.3608]
[1763656062874,0.3608,89141.0,89140.0,0.00219803]
[1763656063384,0.00016791,89144.0,89140.0,0.00219803]
[1763656063776,0.3608,89141.0,89140.0,0.00219803]
[1763656064283,0.00016791,89144.0,89134.0,0.3720315]
[1763656064581,0.00016791,89144.0,89140.0,0.00219803]
[1763656065282,0.40016791,89144.0,89127.0,0.00016824]
[1763656065478,0.3608,89128.0,89127.0,0.00236627]
[1763656065875,0.11224,89135.0,89127.0,0.00236627]
[1763656066082,0.36096791,89144.0,89129.0,0.3608]
[1763656066387,0.36096791,89144.0,89129.0,0.00219803]
[1763656066388,0.54205,89130.0,89129.0,0.00219803]
[1763656066973,0.54205,89130.0,89127.0,0.00016824]
[1763656067176,0.90285,89128.0,89127.0,0.00016824]
[1763656067584,1.41509,89128.0,89112.0,0.3608]
[1763656067788,0.54205,89103.0,89102.0,0.3608]
[1763656067986,0.3608,89116.0,89102.0,0.36299803]
[1763656068387,0.3608,89116.0,89109.0,0.0112347]
[1763656068690,0.00016835,89118.0,89116.0,0.0112339]
[1763656068879,0.00016835,89118.0,89117.0,0.00219803]
[1763656070093,0.00016835,89118.0,89117.0,0.28130803]
[1763656070382,0.00016835,89118.0,89117.0,0.55633803]
[1763656070778,0.00016835,89118.0,89117.0,0.00219803]
[1763656071476,0.00016835,89118.0,89117.0,0.55633803]
[1763656071677,0.00016835,89118.0,89117.0,0.00219803]
[1763656071879,0.54221835,89118.0,89117.0,0.00219803]
[1763656072186,0.54221835,89118.0,89117.0,0.00073267]
[1763656072187,0.28032638,89118.0,89117.0,0.00073267]
[1763656072486,0.27796,89109.0,89108.0,0.34685802]
[1763656072688,0.27796,89109.0,89100.0,0.00016835]
[1763656072689,0.54424803,89109.0,89100.0,0.00016835]
[1763656072889,0.54424803,89109.0,89101.0,0.00073267]
[1763656073086,0.27796,89102.0,89101.0,0.00073267]
[1763656073391,0.28015803,89102.0,89101.0,0.00073267]
[1763656073592,0.55682102,89102.0,89101.0,0.00073267]
[1763656074990,0.54205,89101.0,89100.0,0.00016835]
[1763656075193,0.54424803,89101.0,89100.0,0.00016835]
[1763656075487,0.27796,89092.0,89091.0,0.00014487]
[1763656075682,0.28015803,89092.0,89091.0,0.00014487]
[1763656075882,0.00219803,89092.0,89091.0,0.00014487]
[1763656076493,0.54424803,89092.0,89091.0,0.00014487]
[1763656076695,0.54205,89084.0,89083.0,0.00016835]
[1763656076883,0.54205,89084.0,89064.0,0.3608]
[1763656076884,0.90504803,89084.0,89064.0,0.3608]
[1763656077079,0.90504803,89084.0,89064.0,0.3720403]
[1763656077285,0.3608,89076.0,89063.0,0.0112404]
[1763656077488,0.00219803,89064.0,89063.0,0.0112404]
[1763656077803,0.00232264,89064.0,89056.0,0.3608]
[1763656078492,0.54205,89056.0,89055.0,0.00016835]
[1763656078799,0.54424803,89056.0,89047.0,0.3608]
[1763656078986,0.27796,89048.0,89047.0,0.3608]
[1763656079188,0.27796,89048.0,89030.0,0.3608]
[1763656079189,0.28015803,89048.0,89030.0,0.3608]
[1763656079381,0.00219803,89048.0,89038.0,0.3608]
[1763656079995,0.00219803,89048.0,89034.0,0.00016844]
[1763656080193,0.3608,89043.0,89034.0,0.00016844]
[1763656080387,0.90504803,89035.0,89005.0,0.3608]
[1763656080594,0.3608,89027.0,89012.0,0.00013043]
[1763656080790,0.00219803,89013.0,89012.0,0.00013043]
[1763656080993,0.0022829,89013.0,89012.0,0.71679043]
[1763656081184,0.3608,89041.0,89012.0,0.56265043]
[1763656081385,0.00219803,89040.0,89036.0,0.011244]
[1763656081694,0.01270727,89061.0,89051.0,0.55414]
[1763656081987,0.54205,89048.0,89047.0,0.00011263]
[1763656082187,0.61398803,89048.0,89007.0,0.0112476]
[1763656082396,0.61398803,89048.0,88992.0,1.5]
[1763656082580,0.3608,89025.0,89024.0,0.55409]
[1763656082790,0.1624,89056.0,89034.0,0.26513]
[1763656082984,0.55124803,89047.0,89019.0,0.011246]
[1763656083298,0.00016844,89042.0,89037.0,0.3608]
[1763656083594,0.00236647,89042.0,89037.0,0.3608]
[1763656083796,0.00236647,89042.0,89038.0,0.0112437]
[1763656083991,0.00236647,89042.0,89037.0,0.7216]
[1763656084195,0.00236647,89042.0,89041.0,0.2763733]
[1763656084496,0.00236647,89042.0,89037.0,0.7216]
[1763656084693,0.54905,89038.0,89037.0,0.7216]
[1763656084897,0.54905,89038.0,88992.0,1.5]
[1763656084898,0.55124803,89038.0,89021.0,0.3608]
[1763656085090,0.55124803,89038.0,89012.0,0.00013043]
[1763656085091,0.1624,89034.0,89014.0,0.3608]
[1763656085284,0.00016844,89042.0,89030.0,0.3608]
[1763656085285,0.00219803,89033.0,89030.0,0.3608]
[1763656085798,0.54905,89031.0,89022.0,0.3608]
[1763656085997,0.00219803,89023.0,89022.0,0.3608]
[1763656086298,0.63582803,89023.0,89013.0,0.3608]
[1763656086693,0.27502803,89023.0,89013.0,0.3608]
[1763656086992,0.00219803,89023.0,89018.0,0.0112462]
[1763656087197,0.00219803,89023.0,89022.0,0.3608]
[1763656087890,0.36096844,89042.0,89030.0,0.0112446]
[1763656088206,0.00219803,89041.0,89038.0,0.0112437]
[1763656088497,0.00016844,89042.0,89041.0,0.5513533]
[1763656088692,0.00236647,89042.0,89034.0,0.3608]
[1763656089094,0.00236647,89042.0,89037.0,0.0112438]
[1763656089301,0.00236647,89042.0,89034.0,0.3608]
[1763656090288,0.54905,89035.0,89034.0,0.3608]
[1763656090487,0.00219803,89035.0,89034.0,0.3608]
[1763656090690,0.00016844,89042.0,89041.0,0.2763733]
[1763656090899,0.00016844,89042.0,89041.0,0.5513533]
[1763656091398,0.00236647,89042.0,89030.0,0.3608]
[1763656091996,0.00236647,89042.0,89038.0,0.3608]
[1763656092405,0.00236647,89042.0,89031.0,0.0112445]
[1763656092597,0.00236647,89042.0,89030.0,0.3608]
[1763656092805,0.00236647,89042.0,89037.0,0.0112437]
[1763656092997,0.00236647,89042.0,89030.0,0.3608]
[1763656093302,0.00236647,89042.0,89034.0,0.0112442]
[1763656093499,0.00236647,89042.0,89030.0,0.3608]
[1763656093896,0.00236647,89042.0,89021.0,0.3608]
[1763656094201,0.00236647,89042.0,89033.0,0.3608]
[1763656094505,0.3608,89038.0,89021.0,0.3608]
[1763656094798,0.11443803,89037.0,89021.0,0.3608]
[1763656095194,0.54905,89031.0,89030.0,0.3608]
[1763656095394,0.00219803,89031.0,89030.0,0.3608]
[1763656095688,0.00219803,89031.0,89030.0,0.62593]
[1763656096093,0.00016844,89042.0,89030.0,0.62593]
[1763656096094,0.00016844,89042.0,89033.0,0.0112442]
[1763656096403,0.00219803,89041.0,89038.0,0.3720437]
[1763656096603,0.00016844,89042.0,89041.0,0.5513533]
[1763656097102,0.00236647,89042.0,89041.0,0.5513533]
[1763656097495,0.00016844,89042.0,89041.0,0.5513533]
[1763656097896,0.00236647,89042.0,89041.0,0.5513533]
[1763656098402,0.00236647,89042.0,89038.0,0.3608]
[1763656098700,0.00236647,89042.0,89039.0,0.0112436]
[1763656098899,0.00236647,89042.0,89038.0,0.3608]
[1763656099406,0.54905,89039.0,89038.0,0.3608]
[1763656099703,0.00073267,89039.0,89038.0,0.00219803]
[1763656100604,0.54978267,89039.0,89038.0,0.00219803]
[1763656100896,0.00073267,89039.0,89038.0,0.00219803]
[1763656101098,0.03860508,89073.0,89040.0,0.06699]
[1763656101303,0.27283,89073.0,89072.0,0.36299803]
[1763656101607,0.54905,89073.0,89072.0,0.36299803]
[1763656102199,0.54905,89073.0,89072.0,0.3608]
[1763656102412,0.54905,89066.0,89065.0,0.3608]
[1763656102720,0.54905,89066.0,89065.0,0.36299803]
[1763656102897,0.27283,89066.0,89065.0,0.36299803]
[1763656103098,0.12447912,89074.0,89065.0,0.36299803]
[1763656103304,0.11224,89074.0,89065.0,0.36299803]
[1763656103509,0.38507,89074.0,89073.0,0.3608]
[1763656103698,0.6736306,89074.0,89073.0,0.36299803]
[1763656104005,0.6736306,89074.0,89064.0,0.00016844]
[1763656104006,0.54905,89065.0,89064.0,0.00016844]
[1763656104214,0.1245806,89074.0,89064.0,0.36316647]
[1763656104896,0.54905,89065.0,89064.0,0.36316647]
[1763656105196,0.54905,89065.0,89024.0,0.0112455]
[1763656105197,0.54905,89040.0,89023.0,0.3608]
[1763656105405,0.1624,89060.0,89023.0,0.36153267]
[1763656105406,0.00219803,89024.0,89023.0,0.36153267]
[1763656105706,0.00219803,89024.0,89023.0,0.00073267]
[1763656106409,0.54905,89016.0,89015.0,0.00016844]
[1763656106612,0.54905,89016.0,89015.0,0.00090111]
[1763656106613,0.55124803,89016.0,89015.0,0.00090111]
[1763656107003,0.55124803,89016.0,89015.0,0.00016844]
[1763656107712,0.00219803,89016.0,89015.0,0.00090111]
[1763656108518,0.00219803,89016.0,89015.0,0.54101111]
[1763656108904,0.00016844,89032.0,89015.0,0.00090111]
[1763656109109,0.00016844,89032.0,89031.0,0.5513546]
[1763656109306,0.00236647,89032.0,89031.0,0.54084267]
[1763656109508,0.00236647,89032.0,89031.0,0.00073267]
[1763656110609,0.00236647,89032.0,89022.0,0.3608]
[1763656110911,0.54572,89023.0,89022.0,0.36153267]
[1763656111218,0.54791803,89023.0,89022.0,0.00073267]
[1763656111714,0.54791803,89023.0,89015.0,0.00016844]
[1763656111910,0.54791803,89023.0,89015.0,0.00090111]
[1763656112104,0.54572,89016.0,89015.0,0.00090111]
[1763656112409,0.54572,89016.0,88977.0,0.3608]
[1763656112410,0.53602,88987.0,88977.0,0.3608]
[1763656112706,0.15554,89015.0,88977.0,0.3608]
[1763656112707,0.00219803,88986.0,88985.0,0.52961]
[1763656112907,0.3608,89000.0,88988.0,0.5408599]
[1763656113111,0.3608,89000.0,88985.0,0.00073267]
[1763656113112,0.01236618,89001.0,88999.0,0.00073267]
[1763656113306,0.00229027,89000.0,88999.0,0.00073267]
[1763656113507,0.09285254,89000.0,88985.0,0.3608]
[1763656113816,0.3608,88997.0,88993.0,0.00073267]
[1763656114018,0.00219803,88994.0,88993.0,0.00073267]
[1763656114313,0.00219803,88994.0,88985.0,0.3608]
[1763656114518,0.27402,88987.0,88986.0,0.00073267]
[1763656114814,0.38854981,88987.0,88973.0,0.3608]
[1763656115005,0.53602,88975.0,88966.0,0.3608]
[1763656115204,0.3608,88972.0,88967.0,0.00073267]
[1763656115510,0.00219803,88968.0,88967.0,0.00073267]
[1763656115914,0.00229155,88968.0,88955.0,0.3608]
[1763656116119,0.00229155,88968.0,88960.0,0.0112535]
[1763656116415,0.00229155,88968.0,88961.0,0.00073267]
[1763656116618,0.00229155,88968.0,88967.0,0.2533]
[1763656116804,0.00229155,88968.0,88967.0,0.53034267]
[1763656117006,0.51634,89000.0,88973.0,0.0112518]
[1763656117205,0.51634,89000.0,88960.0,0.15178]
[1763656117206,1.08636573,89000.0,88999.0,0.00219803]
[1763656117405,1.00906,89000.0,88999.0,0.00219803]
[1763656117803,1.09755304,89000.0,88986.0,0.3608]
[1763656118012,1.44263877,89000.0,88987.0,0.00219803]
[1763656118213,1.09755304,89000.0,88991.0,0.0112496]
[1763656118417,0.20073304,89000.0,88999.0,0.36299803]
[1763656119409,0.00016854,89002.0,88999.0,0.36299803]
[1763656119906,0.00016854,89002.0,89001.0,0.52961]
[1763656120102,0.00016854,89002.0,89001.0,0.00219803]
[1763656120315,0.3608,89010.0,89001.0,0.01344633]
[1763656120316,0.09137077,89010.0,89001.0,0.01344633]
[1763656120611,0.11224,89012.0,89007.0,0.0112476]
[1763656120804,0.11224,89012.0,89011.0,0.00219803]
[1763656121004,0.66094,89012.0,89011.0,0.00219803]
[1763656121210,0.75138217,89012.0,89011.0,0.00219803]
[1763656121806,0.53602,89004.0,89003.0,0.00016854]
[1763656122312,0.01268,89012.0,89003.0,0.53197657]
[1763656122519,0.18971427,89020.0,89007.0,0.3608]
[1763656122826,0.35784903,89020.0,89008.0,0.00219803]
[1763656123405,0.35784903,89020.0,89011.0,0.011247]
[1763656123610,0.35784903,89020.0,89012.0,0.00219803]
[1763656124007,0.44789629,89020.0,89012.0,0.00219803]